[Event "ONJK DE"]
[Site "Enschede, Netherlands"]
[Date "2022.08.12"]
[Round "10.4"]
[White "De Wit, Evan"]
[Black "Gang, Kevin Wan Ze"]
[Result "1/2-1/2"]
[TimeControl "40min + 30sec/move"]
[WhiteElo "1001"]
[BlackElo "1105"]

1. d4 {[%clk 00:40:55]} {[%emt 00:00:05]} d5 {[%clk 00:40:58]} {[%emt
00:00:03]} 2. c4 {[%clk 00:41:17]} {[%emt 00:00:08]} dxc4 {[%clk 00:41:22]}
{[%emt 00:00:05]} 3. e4 {[%clk 00:41:37]} {[%emt 00:00:10]} Nc6 {[%clk
00:41:43]} {[%emt 00:00:11]} 4. Nf3 {[%clk 00:41:48]} {[%emt 00:00:18]} Bg4
{[%clk 00:42:05]} {[%emt 00:00:08]} 5. Be3 {[%clk 00:42:09]} {[%emt 00:00:09]}
Qd7 {[%clk 00:41:54]} {[%emt 00:00:41]} 6. d5 {[%clk 00:42:02]} {[%emt
00:00:36]} O-O-O {[%clk 00:42:04]} {[%emt 00:00:21]} 7. Nc3 {[%clk 00:42:22]}
{[%emt 00:00:10]} Ne5 {[%clk 00:42:23]} {[%emt 00:00:10]} 8. Nxe5 {[%clk
00:42:11]} {[%emt 00:00:42]} Bxd1 {[%clk 00:41:55]} {[%emt 00:00:58]} 9. Nxd7
{[%clk 00:42:30]} {[%emt 00:00:10]} Rxd7 {[%clk 00:42:04]} {[%emt 00:00:22]} 10.
Rxd1 {[%clk 00:42:43]} {[%emt 00:00:17]} Nf6 {[%clk 00:42:11]} {[%emt
00:00:23]} 11. Be2 {[%clk 00:42:52]} {[%emt 00:00:20]} e5 {[%clk 00:42:22]}
{[%emt 00:00:21]} 12. Bg5 {[%clk 00:42:57]} {[%emt 00:00:23]} Bb4 {[%clk
00:42:29]} {[%emt 00:00:24]} 13. Bxf6 {[%clk 00:43:12]} {[%emt 00:00:15]} gxf6
{[%clk 00:42:52]} {[%emt 00:00:07]} 14. Bg4 {[%clk 00:43:14]} {[%emt 00:00:27]}
Bxc3+ {[%clk 00:43:01]} {[%emt 00:00:21]} 15. bxc3 {[%clk 00:43:21]} {[%emt
00:00:24]} Rg8 {[%clk 00:43:02]} {[%emt 00:00:28]} 16. Bxd7+ {[%clk 00:43:26]}
{[%emt 00:00:25]} Kxd7 {[%clk 00:43:22]} {[%emt 00:00:10]} 17. g3 {[%clk
00:43:31]} {[%emt 00:00:25]} Rg4 {[%clk 00:43:29]} {[%emt 00:00:24]} 18. f3
{[%clk 00:43:48]} {[%emt 00:00:13]} Rg8 {[%clk 00:43:52]} {[%emt 00:00:06]} 19.
Rb1 {[%clk 00:44:04]} {[%emt 00:00:14]} b6 {[%clk 00:44:10]} {[%emt 00:00:13]}
20. f4 {[%clk 00:43:55]} {[%emt 00:00:39]} exf4 {[%clk 00:44:21]} {[%emt
00:00:18]} 21. gxf4 {[%clk 00:44:13]} {[%emt 00:00:13]} a6 {[%clk 00:44:43]}
{[%emt 00:00:09]} 22. Rb4 {[%clk 00:44:24]} {[%emt 00:00:17]} b5 {[%clk
00:45:06]} {[%emt 00:00:08]} 23. a4 {[%clk 00:44:21]} {[%emt 00:00:32]} c6
{[%clk 00:45:14]} {[%emt 00:00:23]} 24. axb5 {[%clk 00:44:02]} {[%emt
00:00:49]} axb5 {[%clk 00:45:20]} {[%emt 00:00:24]} 25. Kf2 {[%clk 00:44:15]}
{[%emt 00:00:16]} Re8 {[%clk 00:45:19]} {[%emt 00:00:31]} 26. Re1 {[%clk
00:44:15]} {[%emt 00:00:30]} Ra8 {[%clk 00:43:46]} {[%emt 00:02:04]} 27. dxc6+
{[%clk 00:44:26]} {[%emt 00:00:18]} Kxc6 {[%clk 00:44:04]} {[%emt 00:00:12]} 28.
Rg1 {[%clk 00:44:15]} {[%emt 00:00:41]} Ra2+ {[%clk 00:44:14]} {[%emt
00:00:21]} 29. Kg3 {[%clk 00:44:20]} {[%emt 00:00:24]} Rc2 {[%clk 00:44:26]}
{[%emt 00:00:19]} 30. Rf1 {[%clk 00:44:15]} {[%emt 00:00:34]} Rxc3+ {[%clk
00:44:34]} {[%emt 00:00:23]} 31. Rf3 {[%clk 00:44:34]} {[%emt 00:00:11]} Rc2
{[%clk 00:44:37]} {[%emt 00:00:27]} 32. e5 {[%clk 00:44:20]} {[%emt 00:00:44]}
f5 {[%clk 00:44:40]} {[%emt 00:00:27]} 33. Kh4 {[%clk 00:44:21]} {[%emt
00:00:27]} Rxh2+ {[%clk 00:43:42]} {[%emt 00:01:30]} 34. Kg5 {[%clk 00:44:37]}
{[%emt 00:00:14]} Kc5 {[%clk 00:42:04]} {[%emt 00:02:08]} 35. Rb1 {[%clk
00:43:52]} {[%emt 00:01:14]} b4 {[%clk 00:42:03]} {[%emt 00:00:32]} 36. Kf6
{[%clk 00:43:27]} {[%emt 00:00:54]} Re2 {[%clk 00:42:07]} {[%emt 00:00:26]} 37.
Kxf7 {[%clk 00:43:30]} {[%emt 00:00:27]} c3 {[%clk 00:42:02]} {[%emt 00:00:37]}
38. e6 {[%clk 00:41:19]} {[%emt 00:02:40]} Kc4 {[%clk 00:42:02]} {[%emt
00:00:30]} 39. Rh3 {[%clk 00:40:17]} {[%emt 00:01:31]} b3 {[%clk 00:41:56]}
{[%emt 00:00:37]} 40. Rc1 {[%clk 00:35:28]} {[%emt 00:05:19]} c2 {[%clk
00:41:14]} {[%emt 00:01:12]} 41. Rhh1 {[%clk 00:33:51]} {[%emt 00:02:07]} b2
{[%clk 00:41:07]} {[%emt 00:00:37]} 42. Rxc2+ {[%clk 00:29:45]} {[%emt
00:04:36]} Rxc2 {[%clk 00:40:48]} {[%emt 00:00:49]} 43. Rb1 {[%clk 00:29:56]}
{[%emt 00:00:20]} Kb3 {[%clk 00:40:48]} {[%emt 00:00:30]} 44. e7 {[%clk
00:29:25]} {[%emt 00:01:00]} Re2 {[%clk 00:41:01]} {[%emt 00:00:16]} 45. e8=Q
{[%clk 00:28:17]} {[%emt 00:01:39]} Rxe8 {[%clk 00:41:13]} {[%emt 00:00:17]} 46.
Kxe8 {[%clk 00:28:10]} {[%emt 00:00:37]} Kc2 {[%clk 00:41:38]} {[%emt
00:00:05]} 47. Rxb2+ {[%clk 00:27:11]} {[%emt 00:01:30]} Kxb2 {[%clk 00:41:55]}
{[%emt 00:00:13]} 48. Kf7 {[%clk 00:27:30]} {[%emt 00:00:10]} h5 {[%clk
00:42:11]} {[%emt 00:00:15]} 49. Kg6 {[%clk 00:25:47]} {[%emt 00:02:13]} h4
{[%clk 00:42:26]} {[%emt 00:00:15]} 50. Kxf5 {[%clk 00:24:47]} {[%emt
00:01:30]} h3 {[%clk 00:42:36]} {[%emt 00:00:19]} 51. Ke6 {[%clk 00:24:57]}
{[%emt 00:00:20]} h2 {[%clk 00:42:54]} {[%emt 00:00:13]} 52. f5 {[%clk
00:25:00]} {[%emt 00:00:27]} h1=Q {[%clk 00:43:09]} {[%emt 00:00:15]} 53. f6
{[%clk 00:24:57]} {[%emt 00:00:33]} Qh6 {[%clk 00:43:27]} {[%emt 00:00:11]} 54.
Ke7 {[%clk 00:25:02]} {[%emt 00:00:25]} Qe3+ {[%clk 00:43:02]} {[%emt
00:00:55]} 55. Kf7 {[%clk 00:23:46]} {[%emt 00:01:46]} Kc3 {[%clk 00:43:11]}
{[%emt 00:00:21]} 56. Kf8 {[%clk 00:22:30]} {[%emt 00:02:03]} Kd4 {[%clk
00:42:15]} {[%emt 00:01:27]} 57. f7 {[%clk 00:22:26]} {[%emt 00:00:34]} Ke5
{[%clk 00:42:32]} {[%emt 00:00:13]} 58. Kg8 {[%clk 00:22:22]} {[%emt 00:00:34]}
Qg5+ {[%clk 00:42:10]} {[%emt 00:00:51]} 59. Kh7 {[%clk 00:22:16]} {[%emt
00:00:37]} Qf6 {[%clk 00:42:12]} {[%emt 00:00:28]} 60. Kg8 {[%clk 00:22:08]}
{[%emt 00:00:38]} Qg6+ {[%clk 00:41:57]} {[%emt 00:00:45]} 61. Kh8 {[%clk
00:22:22]} {[%emt 00:00:14]} Qh5+ {[%clk 00:40:19]} {[%emt 00:02:09]} 62. Kg8
{[%clk 00:22:21]} {[%emt 00:00:31]} Qg4+ {[%clk 00:40:45]} {[%emt 00:00:04]} 63.
Kh8 {[%clk 00:22:15]} {[%emt 00:00:35]} Qc8+ {[%clk 00:40:47]} {[%emt
00:00:30]} 64. Kg7 {[%clk 00:22:14]} {[%emt 00:00:30]} Qd7 {[%clk 00:41:08]}
{[%emt 00:00:11]} 65. Kh8 {[%clk 00:22:20]} {[%emt 00:00:22]} Qe7 {[%clk
00:41:17]} {[%emt 00:00:21]} 66. Kg8 {[%clk 00:22:18]} {[%emt 00:00:33]} Qe8+
{[%emt 00:00:44]} 1/2-1/2

[Event "ONJK DE"]
[Site "Enschede, Netherlands"]
[Date "2022.08.12"]
[Round "10.5"]
[White "Verwer, Oscar"]
[Black "Dijkhuijsen, Thomas"]
[Result "0-1"]
[TimeControl "40min + 30sec/move"]
[WhiteElo "1361"]
[BlackElo "1306"]

1. e4 {[%clk 00:40:58]} {[%emt 00:00:01]} c5 {[%clk 00:40:57]} {[%emt
00:00:03]} 2. d4 {[%clk 00:41:25]} {[%emt 00:00:03]} cxd4 {[%clk 00:41:24]}
{[%emt 00:00:03]} 3. c3 {[%clk 00:41:51]} {[%emt 00:00:04]} dxc3 {[%clk
00:41:40]} {[%emt 00:00:14]} 4. Nxc3 {[%clk 00:42:15]} {[%emt 00:00:07]} Nc6
{[%clk 00:41:34]} {[%emt 00:00:34]} 5. Nf3 {[%clk 00:42:39]} {[%emt 00:00:07]}
e6 {[%clk 00:41:47]} {[%emt 00:00:18]} 6. Bc4 {[%clk 00:42:57]} {[%emt
00:00:12]} Bc5 {[%clk 00:41:14]} {[%emt 00:01:03]} 7. O-O {[%clk 00:41:32]}
{[%emt 00:01:54]} Nge7 {[%clk 00:41:42]} {[%emt 00:00:02]} 8. Bg5 {[%clk
00:39:46]} {[%emt 00:02:17]} O-O {[%clk 00:41:23]} {[%emt 00:00:48]} 9. e5
{[%clk 00:39:14]} {[%emt 00:01:03]} d6 {[%clk 00:40:38]} {[%emt 00:01:15]} 10.
exd6 {[%clk 00:37:03]} {[%emt 00:02:40]} Bxd6 {[%clk 00:40:07]} {[%emt
00:01:01]} 11. Nb5 {[%clk 00:35:22]} {[%emt 00:02:11]} Bc5 {[%clk 00:40:02]}
{[%emt 00:00:34]} 12. Bf4 {[%clk 00:34:07]} {[%emt 00:01:44]} Ng6 {[%clk
00:38:32]} {[%emt 00:02:02]} 13. Bg3 {[%clk 00:29:44]} {[%emt 00:04:52]} a6
{[%clk 00:37:55]} {[%emt 00:01:08]} 14. Nc3 {[%clk 00:28:07]} {[%emt 00:02:07]}
b5 {[%clk 00:37:37]} {[%emt 00:00:48]} 15. Bb3 {[%clk 00:27:28]} {[%emt
00:01:09]} Bb7 {[%clk 00:36:44]} {[%emt 00:01:23]} 16. Rc1 {[%clk 00:26:45]}
{[%emt 00:01:13]} Be7 {[%clk 00:34:51]} {[%emt 00:02:22]} 17. Ne2 {[%clk
00:24:22]} {[%emt 00:02:54]} Rc8 {[%clk 00:33:13]} {[%emt 00:02:08]} 18. Nfd4
{[%clk 00:17:17]} {[%emt 00:07:35]} Nxd4 {[%clk 00:29:15]} {[%emt 00:04:28]} 19.
Qxd4 {[%clk 00:16:06]} {[%emt 00:01:41]} Qxd4 {[%clk 00:29:34]} {[%emt
00:00:10]} 20. Nxd4 {[%clk 00:16:26]} {[%emt 00:00:11]} Bf6 {[%clk 00:28:48]}
{[%emt 00:01:16]} 21. Rxc8 {[%clk 00:16:20]} {[%emt 00:00:36]} Rxc8 {[%clk
00:29:01]} {[%emt 00:00:17]} 22. Rd1 {[%clk 00:16:00]} {[%emt 00:00:50]} Rd8
{[%clk 00:28:37]} {[%emt 00:00:53]} 23. Ne2 {[%clk 00:14:16]} {[%emt 00:02:15]}
Rxd1+ {[%clk 00:28:50]} {[%emt 00:00:17]} 24. Bxd1 {[%clk 00:14:41]} {[%emt
00:00:05]} Bxb2 {[%clk 00:28:54]} {[%emt 00:00:26]} 25. f3 {[%clk 00:12:02]}
{[%emt 00:03:09]} Ne5 {[%clk 00:28:05]} {[%emt 00:01:18]} 26. Be1 {[%clk
00:11:00]} {[%emt 00:01:33]} Nd3 {[%clk 00:26:09]} {[%emt 00:02:26]} 27. Ba5
{[%clk 00:10:28]} {[%emt 00:01:03]} Nc1 {[%clk 00:25:29]} {[%emt 00:01:09]} 28.
Nxc1 {[%clk 00:10:42]} {[%emt 00:00:16]} Bxc1 {[%clk 00:25:46]} {[%emt
00:00:13]} 29. Kf2 {[%clk 00:10:56]} {[%emt 00:00:16]} g5 {[%clk 00:24:16]}
{[%emt 00:02:00]} 30. g4 {[%clk 00:08:57]} {[%emt 00:02:30]} h6 {[%clk
00:23:01]} {[%emt 00:01:44]} 31. h3 {[%clk 00:08:01]} {[%emt 00:01:27]} Bf4
{[%clk 00:22:47]} {[%emt 00:00:43]} 32. Bc2 {[%clk 00:07:18]} {[%emt 00:01:14]}
Bd5 {[%clk 00:22:39]} {[%emt 00:00:38]} 33. a4 {[%clk 00:06:23]} {[%emt
00:01:25]} Bc4 {[%clk 00:22:48]} {[%emt 00:00:20]} 34. axb5 {[%clk 00:06:22]}
{[%emt 00:00:32]} axb5 {[%clk 00:22:58]} {[%emt 00:00:19]} 35. Bb4 {[%clk
00:06:46]} {[%emt 00:00:07]} Kg7 {[%clk 00:22:29]} {[%emt 00:00:59]} 36. Be4
{[%clk 00:06:44]} {[%emt 00:00:33]} Be5 {[%clk 00:21:02]} {[%emt 00:01:57]} 37.
Kg1 {[%clk 00:05:10]} {[%emt 00:02:03]} Kg8 {[%clk 00:21:10]} {[%emt 00:00:21]}
38. Bc2 {[%clk 00:04:28]} {[%emt 00:01:13]} Bg7 {[%clk 00:21:09]} {[%emt
00:00:31]} 39. Be4 {[%clk 00:04:43]} {[%emt 00:00:15]} Bf8 {[%clk 00:21:29]}
{[%emt 00:00:10]} 40. Bxf8 {[%clk 00:03:51]} {[%emt 00:01:22]} Kxf8 {[%clk
00:21:46]} {[%emt 00:00:12]} 41. Bb1 {[%clk 00:04:03]} {[%emt 00:00:19]} Ke7
{[%clk 00:22:07]} {[%emt 00:00:09]} 42. Kf2 {[%clk 00:03:47]} {[%emt 00:00:47]}
Kd6 {[%clk 00:22:21]} {[%emt 00:00:16]} 43. Be4 {[%clk 00:01:45]} {[%emt
00:02:31]} Kc5 {[%clk 00:22:24]} {[%emt 00:00:26]} 44. Kg3 {[%clk 00:01:10]}
{[%emt 00:01:06]} e5 {[%clk 00:22:05]} {[%emt 00:00:49]} 45. h4 {[%clk
00:01:25]} {[%emt 00:00:14]} Kd4 {[%clk 00:22:17]} {[%emt 00:00:18]} 46. hxg5
{[%clk 00:01:01]} {[%emt 00:00:55]} hxg5 {[%clk 00:22:36]} {[%emt 00:00:11]} 47.
Kf2 {[%clk 00:01:25]} {[%emt 00:00:06]} Bd3 {[%clk 00:22:15]} {[%emt 00:00:51]}
48. Bc6 {[%clk 00:01:18]} {[%emt 00:00:36]} b4 {[%clk 00:22:28]} {[%emt
00:00:18]} 49. Ba4 {[%clk 00:01:25]} {[%emt 00:00:23]} Bc4 {[%clk 00:22:22]}
{[%emt 00:00:35]} 50. Bc2 {[%clk 00:00:48]} {[%emt 00:01:08]} b3 {[%clk
00:22:44]} {[%emt 00:00:08]} 51. Bxb3 {[%clk 00:00:51]} {[%emt 00:00:27]} Bxb3
{[%clk 00:23:07]} {[%emt 00:00:07]} 52. Ke2 {[%clk 00:01:06]} {[%emt 00:00:16]}
Bc4+ {[%clk 00:23:15]} {[%emt 00:00:22]} 53. Kd2 {[%clk 00:01:18]} {[%emt
00:00:18]} e4 {[%clk 00:23:29]} {[%emt 00:00:16]} 0-1

[Event "ONJK DE"]
[Site "Enschede, Netherlands"]
[Date "2022.08.12"]
[Round "10.6"]
[White "Katpatal, Akshaj (E)"]
[Black "Brorens, Victor (E)"]
[Result "1-0"]
[TimeControl "40min + 30sec/move"]
[WhiteElo "1874"]
[BlackElo "952"]

1. e4 {[%clk 00:40:59]} {[%emt 00:00:01]} e5 {[%clk 00:40:58]} {[%emt
00:00:02]} 2. Nf3 {[%clk 00:41:25]} {[%emt 00:00:04]} Nc6 {[%clk 00:41:20]}
{[%emt 00:00:07]} 3. Nc3 {[%clk 00:41:53]} {[%emt 00:00:03]} Bc5 {[%clk
00:41:34]} {[%emt 00:00:16]} 4. Bc4 {[%clk 00:42:19]} {[%emt 00:00:04]} Nf6
{[%clk 00:41:56]} {[%emt 00:00:08]} 5. d3 {[%clk 00:42:37]} {[%emt 00:00:12]}
d6 {[%clk 00:42:19]} {[%emt 00:00:06]} 6. Bg5 {[%clk 00:43:03]} {[%emt
00:00:05]} h6 {[%clk 00:42:44]} {[%emt 00:00:05]} 7. Bxf6 {[%clk 00:43:30]}
{[%emt 00:00:03]} Qxf6 {[%clk 00:43:12]} {[%emt 00:00:02]} 8. Nd5 {[%clk
00:43:45]} {[%emt 00:00:14]} Qd8 {[%clk 00:43:37]} {[%emt 00:00:06]} 9. h3
{[%clk 00:44:10]} {[%emt 00:00:05]} a6 {[%clk 00:43:59]} {[%emt 00:00:08]} 10.
O-O {[%clk 00:44:31]} {[%emt 00:00:08]} b5 {[%clk 00:44:21]} {[%emt 00:00:09]}
11. Bb3 {[%clk 00:44:56]} {[%emt 00:00:05]} Ne7 {[%clk 00:44:45]} {[%emt
00:00:06]} 12. c3 {[%clk 00:45:18]} {[%emt 00:00:07]} c6 {[%clk 00:45:04]}
{[%emt 00:00:12]} 13. Nxe7 {[%clk 00:45:43]} {[%emt 00:00:05]} Qxe7 {[%clk
00:45:31]} {[%emt 00:00:02]} 14. d4 {[%clk 00:46:01]} {[%emt 00:00:12]} exd4
{[%clk 00:45:50]} {[%emt 00:00:11]} 15. cxd4 {[%clk 00:46:26]} {[%emt
00:00:05]} Bb6 {[%clk 00:46:16]} {[%emt 00:00:05]} 16. Re1 {[%clk 00:46:40]}
{[%emt 00:00:15]} O-O {[%clk 00:46:38]} {[%emt 00:00:08]} 17. Rc1 {[%clk
00:47:06]} {[%emt 00:00:04]} Bb7 {[%clk 00:46:50]} {[%emt 00:00:19]} 18. d5
{[%clk 00:47:26]} {[%emt 00:00:10]} c5 {[%clk 00:47:14]} {[%emt 00:00:05]} 19.
e5 {[%clk 00:47:44]} {[%emt 00:00:12]} dxe5 {[%clk 00:47:34]} {[%emt 00:00:11]}
20. d6 {[%clk 00:47:36]} {[%emt 00:00:38]} Qd8 {[%clk 00:47:55]} {[%emt
00:00:09]} 21. Nxe5 {[%clk 00:47:53]} {[%emt 00:01:57]} c4 {[%clk 00:00:00]}
{[%emt 00:00:20]} 22. Bc2 {[%clk 00:00:00]} {[%emt 00:00:13]} f6 {[%clk
00:00:00]} {[%emt 00:00:08]} 23. Ng6 {[%clk 00:00:00]} {[%emt 00:00:19]} Re8
{[%clk 00:48:15]} {[%emt 00:00:11]} 24. Ne7+ {[%clk 00:48:10]} {[%emt
00:00:16]} Kf8 {[%clk 00:48:56]} {[%emt 00:00:16]} 25. Bg6 {[%clk 00:48:20]}
{[%emt 00:00:22]} Bc5 {[%clk 00:48:50]} {[%emt 00:00:36]} 26. Bxe8 {[%clk
00:48:34]} {[%emt 00:00:16]} Qxe8 {[%clk 00:49:11]} {[%emt 00:00:09]} 27. Qg4
{[%clk 00:48:48]} {[%emt 00:00:16]} Qf7 {[%clk 00:49:13]} {[%emt 00:00:26]} 28.
Qd7 {[%clk 00:47:08]} {[%emt 00:02:10]} 1-0

[Event "ONJK DE"]
[Site "Enschede, Netherlands"]
[Date "2022.08.12"]
[Round "10.7"]
[White "Rudolph, Simon"]
[Black "Thijssen, Freek (E)"]
[Result "1/2-1/2"]
[TimeControl "40min + 30sec/move"]
[WhiteElo "996"]
[BlackElo "1484"]

1. c4 {[%clk 00:41:00]} e5 {[%clk 00:40:51]} {[%emt 00:00:09]} 2. Nf3 {[%clk
00:41:20]} {[%emt 00:00:09]} Nc6 {[%clk 00:41:02]} {[%emt 00:00:19]} 3. d4
{[%clk 00:41:38]} {[%emt 00:00:12]} exd4 {[%clk 00:41:21]} {[%emt 00:00:12]} 4.
Nxd4 {[%clk 00:42:00]} {[%emt 00:00:07]} Nxd4 {[%clk 00:41:42]} {[%emt
00:00:09]} 5. Qxd4 {[%clk 00:42:25]} {[%emt 00:00:06]} h6 {[%clk 00:41:26]}
{[%emt 00:00:46]} 6. h3 {[%clk 00:42:32]} {[%emt 00:00:22]} Nf6 {[%clk
00:40:51]} {[%emt 00:01:06]} 7. Nc3 {[%clk 00:42:56]} {[%emt 00:00:05]} b6
{[%clk 00:38:58]} {[%emt 00:02:23]} 8. Ne4 {[%clk 00:42:20]} {[%emt 00:01:06]}
Bb7 {[%clk 00:38:21]} {[%emt 00:01:08]} 9. Nxf6+ {[%clk 00:42:27]} {[%emt
00:00:23]} Qxf6 {[%clk 00:38:42]} {[%emt 00:00:09]} 10. Qxf6 {[%clk 00:42:48]}
{[%emt 00:00:08]} gxf6 {[%clk 00:39:09]} {[%emt 00:00:04]} 11. Bf4 {[%clk
00:42:31]} {[%emt 00:00:44]} Bb4+ {[%clk 00:39:17]} {[%emt 00:00:25]} 12. Bd2
{[%clk 00:42:49]} {[%emt 00:00:10]} Bxd2+ {[%clk 00:39:39]} {[%emt 00:00:10]}
13. Kxd2 {[%clk 00:43:14]} {[%emt 00:00:05]} Rg8 {[%clk 00:39:58]} {[%emt
00:00:10]} 14. f3 {[%clk 00:43:28]} {[%emt 00:00:16]} f5 {[%clk 00:39:53]}
{[%emt 00:00:35]} 15. Rg1 {[%clk 00:42:18]} {[%emt 00:01:38]} f4 {[%clk
00:39:22]} {[%emt 00:01:04]} 16. Re1 {[%clk 00:41:55]} {[%emt 00:00:51]} O-O-O
{[%clk 00:39:34]} {[%emt 00:00:20]} 17. e4 {[%clk 00:40:25]} {[%emt 00:02:00]}
fxe3+ {[%clk 00:39:43]} {[%emt 00:00:21]} 18. Rxe3 {[%clk 00:40:24]} {[%emt
00:00:30]} Rge8 {[%clk 00:39:51]} {[%emt 00:00:22]} 19. Bd3 {[%clk 00:40:08]}
{[%emt 00:00:46]} Rxe3 {[%clk 00:39:57]} {[%emt 00:00:24]} 20. Kxe3 {[%clk
00:40:25]} {[%emt 00:00:13]} d5 {[%clk 00:38:32]} {[%emt 00:01:56]} 21. Bf5+
{[%clk 00:39:50]} {[%emt 00:01:05]} Kb8 {[%clk 00:38:32]} {[%emt 00:00:30]} 22.
Rc1 {[%clk 00:37:08]} {[%emt 00:03:12]} Bc8 {[%clk 00:32:53]} {[%emt 00:06:08]}
23. Bxc8 {[%clk 00:36:24]} {[%emt 00:01:14]} Kxc8 {[%clk 00:33:13]} {[%emt
00:00:10]} 24. cxd5 {[%clk 00:36:13]} {[%emt 00:00:41]} Rxd5 {[%clk 00:33:37]}
{[%emt 00:00:07]} 25. Ke4 {[%emt 00:00:26]} 1/2-1/2

[Event "ONJK DE"]
[Site "Enschede, Netherlands"]
[Date "2022.08.12"]
[Round "10.8"]
[White "Koppenens, Oscar"]
[Black "Tetova, Amir"]
[Result "1/2-1/2"]
[TimeControl "40min + 30sec/move"]
[WhiteElo "1266"]
[BlackElo "1154"]

1. e4 {[%clk 00:40:58]} {[%emt 00:00:01]} c5 {[%clk 00:40:58]} {[%emt
00:00:03]} 2. c3 {[%clk 00:41:24]} {[%emt 00:00:04]} d5 {[%clk 00:41:10]}
{[%emt 00:00:18]} 3. exd5 {[%clk 00:41:49]} {[%emt 00:00:04]} Qxd5 {[%clk
00:41:28]} {[%emt 00:00:13]} 4. Nf3 {[%clk 00:42:10]} {[%emt 00:00:10]} Bg4
{[%clk 00:41:39]} {[%emt 00:00:18]} 5. Be2 {[%clk 00:42:34]} {[%emt 00:00:06]}
Nc6 {[%clk 00:41:18]} {[%emt 00:00:51]} 6. d4 {[%clk 00:42:14]} {[%emt
00:00:50]} cxd4 {[%clk 00:40:46]} {[%emt 00:01:03]} 7. cxd4 {[%clk 00:42:37]}
{[%emt 00:00:07]} Nxd4 {[%clk 00:40:24]} {[%emt 00:00:51]} 8. Qa4+ {[%clk
00:41:37]} {[%emt 00:01:30]} Qc6 {[%clk 00:40:02]} {[%emt 00:00:53]} 9. Qxc6+
{[%clk 00:41:20]} {[%emt 00:00:47]} Nxc6 {[%clk 00:40:19]} {[%emt 00:00:13]} 10.
Nc3 {[%clk 00:41:43]} {[%emt 00:00:06]} Bxf3 {[%clk 00:40:40]} {[%emt
00:00:09]} 11. Bxf3 {[%clk 00:42:06]} {[%emt 00:00:07]} e5 {[%clk 00:40:59]}
{[%emt 00:00:10]} 12. Bxc6+ {[%clk 00:42:15]} {[%emt 00:00:21]} bxc6 {[%clk
00:41:14]} {[%emt 00:00:16]} 13. O-O {[%clk 00:42:43]} {[%emt 00:00:03]} Bd6
{[%clk 00:41:06]} {[%emt 00:00:38]} 14. Be3 {[%clk 00:42:59]} {[%emt 00:00:14]}
Nf6 {[%emt 00:00:18]} 15. Rfd1 {[%clk 00:42:47]} {[%emt 00:00:40]} Bc7 {[%clk
00:41:36]} {[%emt 00:00:13]} 16. Rac1 {[%clk 00:42:14]} {[%emt 00:01:02]} Bb6
{[%clk 00:40:53]} {[%emt 00:01:14]} 17. Bg5 {[%clk 00:41:08]} {[%emt 00:01:36]}
Ng4 {[%clk 00:38:52]} {[%emt 00:02:30]} 18. Ne4 {[%clk 00:40:56]} {[%emt
00:00:43]} O-O {[%clk 00:38:45]} {[%emt 00:00:37]} 19. h3 {[%clk 00:39:40]}
{[%emt 00:01:46]} f5 {[%clk 00:38:25]} {[%emt 00:00:50]} 20. Nc5 {[%clk
00:38:57]} {[%emt 00:01:13]} Nf6 {[%clk 00:35:28]} {[%emt 00:03:28]} 21. Bxf6
{[%clk 00:38:36]} {[%emt 00:00:50]} Rxf6 {[%clk 00:35:43]} {[%emt 00:00:15]} 22.
Rd7 {[%clk 00:38:19]} {[%emt 00:00:47]} Rd8 {[%clk 00:34:17]} {[%emt 00:01:56]}
23. b4 {[%clk 00:37:28]} {[%emt 00:01:21]} Rd6 {[%clk 00:33:01]} {[%emt
00:01:46]} 24. Rxd8+ {[%clk 00:37:37]} {[%emt 00:00:21]} Rxd8 {[%clk 00:33:25]}
{[%emt 00:00:06]} 25. Nb7 {[%clk 00:37:54]} {[%emt 00:00:11]} Rd7 {[%clk
00:33:35]} {[%emt 00:00:21]} 26. Nc5 {[%clk 00:38:03]} {[%emt 00:00:22]} Rd5
{[%clk 00:33:44]} {[%emt 00:00:21]} 27. Nb3 {[%clk 00:37:33]} {[%emt 00:01:00]}
Rd6 {[%clk 00:33:16]} {[%emt 00:00:59]} 28. Kf1 {[%clk 00:36:46]} {[%emt
00:01:16]} Kf7 {[%clk 00:32:49]} {[%emt 00:00:57]} 29. Ke2 {[%clk 00:36:30]}
{[%emt 00:00:45]} Ke6 {[%emt 00:00:20]} 30. Nc5+ {[%emt 00:00:05]} Bxc5 {[%clk
00:33:35]} {[%emt 00:00:02]} 31. Rxc5 {[%emt 00:03:22]} f4 {[%clk 00:29:47]}
{[%emt 00:02:37]} 32. Kf3 Rd3+ {[%emt 00:02:25]} 33. Ke2 {[%emt 00:00:35]} Ra3
{[%clk 00:30:09]} {[%emt 00:00:05]} 34. Rxc6+ {[%clk 00:34:30]} {[%emt
00:00:10]} Kd7 {[%clk 00:30:19]} {[%emt 00:00:21]} 35. Rc2 {[%clk 00:34:41]}
{[%emt 00:00:19]} Ra4 {[%clk 00:30:41]} {[%emt 00:00:07]} 36. Rb2 {[%clk
00:34:55]} {[%emt 00:00:16]} Kc6 {[%clk 00:30:19]} {[%emt 00:00:52]} 37. Kd3
{[%clk 00:33:02]} {[%emt 00:02:22]} Kd5 {[%clk 00:30:28]} {[%emt 00:00:22]} 38.
f3 {[%clk 00:31:46]} {[%emt 00:01:45]} g5 {[%clk 00:30:25]} {[%emt 00:00:34]}
39. b5 {[%clk 00:29:52]} {[%emt 00:02:23]} 1/2-1/2